bitfinex/quotes_BTCUSD_20250624
["timestamp","ask_amount","ask_price","bid_price","bid_amount"]
[1750774998493,1.08379458,105370.0,105360.0,0.10066056]
[1750774998890,1.25780744,105370.0,105360.0,0.27654056]
[1750774999546,0.73934114,105370.0,105360.0,0.27354056]
[1750774999807,1.20780744,105370.0,105360.0,0.32014056]
[1750775000043,0.73934114,105370.0,105360.0,0.10066056]
[1750775000246,1.25780744,105370.0,105360.0,0.27342056]
[1750775000824,1.25780744,105370.0,105360.0,0.10066056]
[1750775002407,1.20780744,105370.0,105360.0,0.12386056]
[1750775002869,0.59383928,105370.0,105360.0,0.15026056]
[1750775003302,0.57929843,105370.0,105360.0,0.15026056]
[1750775003508,0.57929843,105370.0,105360.0,0.34957709]
[1750775003663,0.57929843,105370.0,105360.0,0.15026056]
[1750775003874,1.06925373,105370.0,105360.0,0.15026056]
[1750775004634,1.06925373,105370.0,105360.0,0.32302056]
[1750775005050,1.06925373,105370.0,105360.0,0.15026056]
[1750775005274,1.08379458,105370.0,105360.0,0.29662056]
[1750775005696,1.08379458,105370.0,105360.0,0.31421316]
[1750775006123,1.08379458,105370.0,105360.0,0.29101316]
[1750775006555,1.08379458,105370.0,105360.0,0.29077316]
[1750775006726,1.08379458,105370.0,105360.0,0.29073316]
[1750775007159,1.08379458,105370.0,105360.0,0.27314056]
[1750775007365,1.11230558,105370.0,105360.0,0.27314056]
[1750775008401,1.32055584,105370.0,105360.0,0.27294056]
[1750775008828,0.76192117,105370.0,105360.0,0.27294056]
[1750775009045,1.28038747,105370.0,105360.0,0.27294056]
[1750775009782,0.55385729,105360.0,105350.0,0.0002]
[1750775009996,1.16782545,105360.0,105350.0,0.00033822]
[1750775011737,1.21782545,105360.0,105350.0,0.00233822]
[1750775012799,1.21782545,105360.0,105350.0,0.00333822]
[1750775013009,1.21782545,105360.0,105350.0,0.00133822]
[1750775013231,1.21782545,105360.0,105350.0,0.00033822]
[1750775013450,1.24044862,105360.0,105350.0,0.00033822]
[1750775014299,1.41224862,105360.0,105350.0,0.00033822]
[1750775014707,1.41224862,105360.0,105350.0,0.00917803]
[1750775015238,1.41324862,105360.0,105350.0,0.00917803]
[1750775015468,1.41224862,105360.0,105350.0,0.00917803]
[1750775015675,1.49895323,105360.0,105350.0,0.00917803]
[1750775015883,1.41524862,105360.0,105350.0,0.00917803]
[1750775016094,1.42024862,105360.0,105350.0,0.01017803]
[1750775016311,1.42024862,105360.0,105350.0,0.01017962]
[1750775016532,0.6038762,105350.0,105340.0,0.00131792]
[1750775016753,0.58935428,105340.0,105330.0,0.0002]
[1750775017004,0.58935428,105340.0,105320.0,0.002]
[1750775017005,0.60391406,105330.0,105320.0,0.002]
[1750775017222,0.60391406,105330.0,105300.0,0.0297]
[1750775017223,0.53941107,105310.0,105300.0,0.0297]
[1750775017441,1.16792008,105310.0,105300.0,0.0297]
[1750775017909,1.43810289,105310.0,105300.0,0.0022]
[1750775018363,0.01899451,105290.0,105280.0,0.08104]
[1750775018581,0.53746081,105290.0,105280.0,0.08117804]
[1750775018807,0.34,105300.0,105290.0,0.21555156]
[1750775019018,0.34,105300.0,105290.0,0.39404319]
[1750775019232,0.34,105310.0,105300.0,0.18993352]
[1750775019438,0.8594663,105310.0,105300.0,0.2345265]
[1750775019688,0.8594663,105310.0,105300.0,0.23452659]
[1750775019900,0.8584663,105310.0,105300.0,0.27511019]
[1750775020107,0.34,105310.0,105300.0,0.3209029]
[1750775020319,0.8584663,105310.0,105300.0,0.30191019]
[1750775020754,0.86796135,105310.0,105300.0,0.29341352]
[1750775020970,0.88661838,105310.0,105300.0,0.29341352]
[1750775021184,0.88661838,105310.0,105300.0,0.31240677]
[1750775021396,0.90560857,105310.0,105300.0,0.29341352]
[1750775021608,0.91510398,105310.0,105300.0,0.29341352]
[1750775021815,0.90560857,105310.0,105300.0,0.29341352]
[1750775022020,0.89611334,105310.0,105300.0,0.29341352]
[1750775022258,0.36815208,105310.0,105300.0,0.26232641]
[1750775022473,0.36815208,105310.0,105300.0,0.31240668]
[1750775022677,0.36815208,105310.0,105300.0,0.3239029]
[1750775022888,0.36815208,105310.0,105300.0,0.33339903]
[1750775023099,0.36815208,105310.0,105300.0,0.34289507]
[1750775023312,0.36815208,105310.0,105300.0,0.31340668]
[1750775023538,0.36815208,105310.0,105300.0,0.32090299]
[1750775023749,0.36815208,105310.0,105300.0,0.27282308]
[1750775023964,0.88761838,105310.0,105300.0,0.51107921]
[1750775024250,0.88761838,105310.0,105300.0,0.51107939]
[1750775024464,0.89711334,105310.0,105300.0,0.29191552]
[1750775024697,0.9255993,105310.0,105300.0,0.23233752]
[1750775024922,0.9255993,105310.0,105300.0,0.28241752]
[1750775025154,0.92559921,105310.0,105300.0,0.27291952]
[1750775025377,0.91610371,105310.0,105300.0,0.22283952]
[1750775025604,0.90660839,105310.0,105300.0,0.21334152]
[1750775025843,0.91610362,105310.0,105300.0,0.21334152]
[1750775026101,0.91610362,105310.0,105300.0,0.23233236]
[1750775026102,0.02915208,105310.0,105300.0,0.23233236]
[1750775026315,0.02915208,105310.0,105300.0,0.67783422]
[1750775026530,0.02915208,105310.0,105300.0,0.89979422]
[1750775026938,0.02915208,105310.0,105300.0,0.89779422]
[1750775027152,0.02815208,105310.0,105300.0,0.89079422]
[1750775027360,0.02815208,105310.0,105300.0,0.89379422]
[1750775027587,0.8889873,105330.0,105320.0,0.25799232]
[1750775027819,0.8889873,105330.0,105320.0,0.44902161]
[1750775028098,0.05843943,105330.0,105320.0,0.45851585]
[1750775028320,0.05843943,105330.0,105320.0,0.43647585]
[1750775028535,0.02991843,105330.0,105320.0,0.65843585]
[1750775028744,0.02991843,105330.0,105320.0,0.85843585]
[1750775028959,0.02991843,105330.0,105320.0,0.85743585]
[1750775029172,0.36991843,105330.0,105320.0,0.85743585]
[1750775029617,0.37591843,105330.0,105320.0,0.95293771]
[1750775029846,0.36991843,105330.0,105320.0,0.95293771]
[1750775030288,0.37391843,105330.0,105320.0,0.95293771]
[1750775032255,0.03391843,105330.0,105320.0,0.95293771]
[1750775032667,0.03591843,105330.0,105320.0,0.95293771]
[1750775033052,0.03191843,105330.0,105320.0,0.95293771]
[1750775033214,0.002,105330.0,105320.0,0.95293771]
[1750775033418,0.013,105330.0,105320.0,0.95393771]
[1750775033613,0.017,105330.0,105320.0,0.95393771]
[1750775035098,0.017,105330.0,105320.0,0.73197771]
[1750775035306,0.357,105330.0,105320.0,0.95357771]
[1750775035508,0.357,105330.0,105320.0,0.73197771]
[1750775035838,0.357,105330.0,105320.0,0.95357771]
[1750775038222,0.017,105330.0,105320.0,0.95357771]
[1750775039951,0.017,105330.0,105320.0,1.10357771]
[1750775040871,0.002,105350.0,105320.0,1.10357771]
[1750775040872,0.002,105350.0,105340.0,0.5683395]
[1750775041078,0.002,105350.0,105340.0,1.04886136]
[1750775041832,0.002,105350.0,105340.0,0.87734136]
[1750775042035,0.002,105350.0,105340.0,1.09894136]
[1750775042604,0.002,105350.0,105340.0,1.10194136]
[1750775042980,0.002,105350.0,105340.0,1.10794136]
[1750775043643,0.42745953,105370.0,105360.0,0.35]
[1750775043644,0.002,105370.0,105360.0,0.35]
[1750775043861,0.002,105370.0,105360.0,1.65118622]
[1750775043862,0.00213774,105370.0,105360.0,1.65118622]
[1750775044078,0.00213774,105370.0,105360.0,1.38271992]
[1750775045758,0.00213774,105370.0,105360.0,1.43563992]
[1750775046383,0.00213774,105370.0,105360.0,1.03563992]
[1750775046384,0.00913774,105370.0,105360.0,1.03563992]
[1750775046594,0.00913774,105370.0,105360.0,0.94013806]
[1750775047212,0.00213774,105370.0,105360.0,0.94013806]
[1750775047453,0.86060404,105370.0,105360.0,0.90703806]
[1750775047864,0.34213774,105370.0,105360.0,0.90703806]
[1750775048074,0.34413774,105370.0,105360.0,0.90703806]
[1750775048702,0.34213774,105370.0,105360.0,0.90703806]
[1750775048930,0.34213774,105370.0,105360.0,0.90903806]
[1750775049119,0.35162738,105370.0,105360.0,0.90903806]
[1750775049322,0.35162747,105370.0,105360.0,0.90903806]
[1750775049731,0.35162738,105370.0,105360.0,0.90903806]
[1750775049931,0.35762738,105370.0,105360.0,0.90903806]
[1750775050141,0.34813774,105370.0,105360.0,0.90903806]
[1750775050355,0.34813774,105370.0,105360.0,0.93923806]
[1750775050980,0.34813774,105370.0,105360.0,1.03473992]
[1750775051610,0.34213774,105370.0,105360.0,1.03473992]
[1750775052145,0.34213774,105370.0,105360.0,1.03773992]
[1750775054093,0.00213774,105370.0,105360.0,1.85620622]
[1750775054530,0.00213774,105370.0,105360.0,1.33773992]
[1750775055208,0.00213774,105370.0,105360.0,1.33573992]
[1750775055440,0.00213774,105370.0,105360.0,1.33273992]
[1750775055648,0.00713774,105370.0,105360.0,1.33273992]
[1750775055857,0.01413774,105370.0,105360.0,1.33273992]
[1750775056085,0.01413774,105370.0,105360.0,1.03273992]
[1750775056294,0.01413774,105370.0,105360.0,1.03301992]
[1750775057138,0.01413774,105370.0,105360.0,1.18301992]
[1750775057346,0.01413774,105370.0,105360.0,0.95397992]
[1750775057555,0.01413774,105370.0,105360.0,1.18305992]
[1750775062697,0.01413774,105370.0,105360.0,1.03305992]
[1750775062922,0.01413774,105370.0,105360.0,1.18237992]
[1750775065398,0.00713774,105370.0,105360.0,1.18237992]
[1750775065606,0.00213774,105370.0,105360.0,1.18237992]
[1750775065826,0.00313774,105370.0,105360.0,1.18237992]
[1750775066045,0.00413774,105370.0,105360.0,1.18237992]
[1750775066972,0.00413774,105370.0,105360.0,1.00217992]
[1750775067647,0.00413774,105370.0,105360.0,1.03247992]
[1750775069970,0.00413774,105370.0,105360.0,0.80407992]
[1750775070210,0.00413774,105370.0,105360.0,1.00157992]
[1750775070691,0.00413774,105370.0,105360.0,0.77377992]
[1750775070931,0.00413774,105370.0,105360.0,0.87373806]
[1750775070932,0.02311711,105370.0,105360.0,0.87373806]
[1750775071142,0.02311702,105370.0,105360.0,0.87373806]
[1750775071575,0.01362738,105370.0,105360.0,0.87373806]
[1750775071787,0.00413774,105370.0,105360.0,0.87373806]
[1750775074295,0.02311747,105370.0,105360.0,0.87325806]
[1750775074492,0.01362747,105370.0,105360.0,0.87325806]
[1750775075260,0.02311738,105370.0,105360.0,0.87325806]
[1750775075671,0.00413774,105370.0,105360.0,1.47024622]
[1750775075884,0.00413774,105370.0,105360.0,1.69732622]
[1750775076102,0.00413774,105370.0,105360.0,1.17885992]
[1750775079743,0.00413774,105370.0,105360.0,1.17905992]
[1750775082017,0.3402,105380.0,105360.0,1.17905992]
[1750775082018,0.0002,105380.0,105370.0,0.36827734]
[1750775082232,0.0002,105380.0,105370.0,1.48006635]
[1750775082438,0.0002,105380.0,105370.0,1.60855835]
[1750775082854,0.0002,105380.0,105370.0,1.61850883]
[1750775083539,0.0012,105380.0,105370.0,1.61850883]
[1750775083890,0.0002,105380.0,105370.0,1.61850883]
[1750775084093,0.0072,105380.0,105370.0,1.61850883]
[1750775084522,0.0062,105380.0,105370.0,1.61850883]
[1750775085010,0.0102,105380.0,105370.0,1.61850883]
[1750775085214,0.0102,105380.0,105370.0,1.5464175]
[1750775085605,0.0102,105380.0,105370.0,1.0279512]
[1750775085836,0.0102,105380.0,105370.0,1.5464175]
[1750775086567,0.0102,105380.0,105370.0,1.0279512]
[1750775086773,0.0102,105380.0,105370.0,1.5464175]
[1750775087219,0.00772,105380.0,105370.0,1.5464175]
[1750775089864,0.00772,105380.0,105370.0,1.55652219]
[1750775090004,0.00772,105380.0,105370.0,1.55596219]
[1750775090486,0.00772,105380.0,105370.0,1.32904219]
[1750775090681,0.00772,105380.0,105370.0,1.55596219]
[1750775091043,0.00772,105380.0,105370.0,1.70596219]
[1750775091263,0.00772,105380.0,105370.0,1.6956975]
[1750775091506,0.00772,105380.0,105370.0,1.1772312]
[1750775091648,0.00772,105380.0,105370.0,1.6956975]
[1750775092264,0.00772,105380.0,105370.0,1.1689375]
[1750775092466,0.00772,105380.0,105370.0,0.8004712]
[1750775092666,0.00772,105380.0,105370.0,0.9986592]
[1750775093080,0.00772,105380.0,105370.0,0.7719792]
[1750775093244,0.00772,105380.0,105370.0,0.9986592]
[1750775094073,0.00772,105380.0,105370.0,0.9985392]
[1750775096110,0.00772,105380.0,105370.0,1.5170055]
[1750775098118,0.00772,105380.0,105370.0,1.5166855]
[1750775098320,0.00772,105380.0,105370.0,0.9982192]
[1750775098525,0.00772,105380.0,105370.0,1.6666855]
[1750775098930,0.00772,105380.0,105370.0,1.6951805]
[1750775099383,0.00772,105380.0,105370.0,1.70972135]
[1750775099793,0.00772,105380.0,105370.0,2.14972135]
[1750775100031,0.1,105390.0,105380.0,1.58102293]
[1750775100343,0.0002,105400.0,105390.0,0.68277677]
[1750775100544,0.0002,105410.0,105400.0,0.43275607]
[1750775100704,0.0002,105410.0,105400.0,1.67828423]
[1750775100870,0.00066056,105410.0,105400.0,1.67828423]
[1750775102937,0.00066056,105410.0,105400.0,1.70676923]
[1750775103688,0.00366056,105410.0,105400.0,1.70676923]
[1750775104102,0.00866056,105410.0,105400.0,1.70676923]
[1750775104621,0.00866056,105410.0,105400.0,1.18830293]
[1750775104825,0.00866056,105410.0,105400.0,1.70676923]
[1750775108877,0.00866056,105410.0,105400.0,1.09780208]
[1750775109094,0.00866056,105410.0,105400.0,0.86629708]
[1750775109307,0.00866056,105410.0,105400.0,1.16629708]
[1750775109548,0.00866056,105410.0,105400.0,1.19369708]
[1750775110184,0.00866056,105410.0,105400.0,1.71216338]
[1750775110394,0.00866056,105410.0,105400.0,1.19369708]
[1750775110603,0.00866056,105410.0,105400.0,1.19381708]
[1750775115909,0.00866056,105410.0,105400.0,0.96495708]
[1750775116114,0.00866056,105410.0,105400.0,1.13771708]
[1750775116324,0.00866056,105410.0,105400.0,1.03771708]
[1750775116945,0.00866056,105410.0,105400.0,0.81371708]
[1750775117159,0.00866056,105410.0,105400.0,1.03771708]
[1750775117366,0.00366056,105410.0,105400.0,1.03771708]
[1750775117780,0.00766056,105410.0,105400.0,1.03771708]
[1750775119012,0.00766056,105410.0,105400.0,1.03755708]
[1750775119013,0.03446056,105410.0,105400.0,1.03755708]
[1750775119214,0.03146056,105410.0,105400.0,0.81371708]
[1750775119418,0.03146056,105410.0,105400.0,1.03735708]
[1750775120441,0.00466056,105410.0,105400.0,1.03735708]
[1750775121515,0.00966056,105410.0,105400.0,1.03735708]
[1750775121928,0.00966056,105410.0,105400.0,1.60972338]
[1750775122788,0.00966056,105410.0,105400.0,1.09125708]
[1750775134147,0.00966056,105410.0,105400.0,1.60972338]
[1750775134353,0.00966056,105410.0,105400.0,1.58550055]
[1750775135211,0.00966056,105410.0,105400.0,1.68550055]
[1750775135784,0.00466056,105410.0,105400.0,1.68550055]
[1750775135980,0.00466056,105410.0,105400.0,2.35520317]
[1750775136205,0.0055918,105410.0,105400.0,2.35520317]
[1750775136411,0.0075918,105410.0,105400.0,2.77576047]
[1750775137209,0.005,105410.0,105400.0,2.77576047]
[1750775137513,0.003,105410.0,105400.0,2.77576047]
[1750775138221,0.0002,105420.0,105410.0,0.80819451]
[1750775138420,0.0002,105430.0,105420.0,1.45209594]
[1750775138635,0.00033814,105430.0,105420.0,1.8196378]
[1750775139693,0.0002,105460.0,105450.0,1.43789301]
[1750775139900,0.0002,105460.0,105450.0,1.75587487]
[1750775140115,0.0002,105460.0,105450.0,1.58387487]
[1750775140321,0.0002,105460.0,105450.0,1.75587487]
[1750775141362,0.0002,105460.0,105450.0,1.77041572]
[1750775141770,0.0032,105460.0,105450.0,1.87041572]
[1750775142167,0.0032,105460.0,105450.0,1.88019189]
[1750775142665,0.0032,105460.0,105450.0,1.87041572]
[1750775142852,0.0062,105460.0,105450.0,1.87041572]
[1750775143205,0.0002,105460.0,105450.0,1.87041572]
[1750775143584,0.0012,105460.0,105450.0,1.87041572]
[1750775143796,0.0032,105460.0,105450.0,1.1416536]
[1750775144016,0.0032,105460.0,105450.0,1.1360136]
[1750775144239,0.0032,105460.0,105450.0,0.7360136]
[1750775144240,0.06058145,105460.0,105450.0,0.7360136]
[1750775144656,0.06058145,105460.0,105450.0,0.64051174]
[1750775144866,1.12317143,105460.0,105450.0,0.63102921]
[1750775145069,1.12317143,105460.0,105450.0,0.20862939]
[1750775145070,1.13265423,105460.0,105450.0,0.20862939]
[1750775145301,0.93352661,105460.0,105450.0,0.43702939]
[1750775145501,1.14013631,105460.0,105450.0,0.45599472]
[1750775145700,1.14013631,105460.0,105450.0,0.23359472]
[1750775145910,1.13065477,105460.0,105450.0,0.45051219]
[1750775146111,1.13065477,105460.0,105450.0,0.46947752]
[1750775146334,0.90308127,105460.0,105450.0,0.46947698]
[1750775146541,0.90308127,105460.0,105450.0,0.46547698]
[1750775146760,0.3881,105460.0,105450.0,0.46547698]
[1750775146968,0.3881,105460.0,105450.0,0.47447698]
[1750775147410,0.3881,105460.0,105450.0,0.46847698]
[1750775147823,0.3891,105460.0,105450.0,0.48247698]
[1750775148650,0.39858145,105460.0,105450.0,0.48247698]
[1750775148850,0.40806317,105460.0,105450.0,0.26007698]
[1750775149063,0.40806308,105460.0,105450.0,0.48243698]
[1750775149280,0.56408127,105460.0,105450.0,0.48243698]
[1750775149496,0.90408127,105460.0,105450.0,0.48243698]
[1750775149904,0.3891,105460.0,105450.0,0.68243698]
[1750775153230,0.3867,105460.0,105450.0,0.68243698]
[1750775154569,0.3652,105460.0,105450.0,0.68243698]
[1750775156056,0.341,105460.0,105450.0,0.68243698]
[1750775156280,0.341,105460.0,105450.0,0.55557884]
[1750775156485,0.9139629,105460.0,105450.0,0.45398912]
[1750775156724,0.3895,105460.0,105450.0,0.66347165]
[1750775156927,0.341,105460.0,105450.0,0.66347165]
[1750775157132,0.341,105460.0,105450.0,0.75897351]
[1750775157977,0.341,105460.0,105450.0,0.66347165]
[1750775158208,0.88388127,105460.0,105450.0,0.66347165]
[1750775158413,0.341,105460.0,105450.0,0.66347165]
[1750775159484,0.341,105460.0,105450.0,0.75897351]
[1750775160402,0.001,105460.0,105450.0,1.62875478]
[1750775160632,0.001,105460.0,105450.0,1.11377351]
[1750775161079,0.001,105460.0,105450.0,1.08743351]
[1750775161327,0.001,105460.0,105450.0,1.07843351]
[1750775161536,0.001,105460.0,105450.0,1.07943351]
[1750775162233,0.39684006,105480.0,105470.0,0.15948073]
[1750775162468,0.25908902,105470.0,105460.0,0.18962906]
[1750775162705,1.1096495,105470.0,105460.0,0.22228]
[1750775162928,1.1856193,105470.0,105460.0,0.22228]
[1750775163148,1.28112116,105470.0,105460.0,0.05048]
[1750775163623,0.59802939,105450.0,105440.0,0.01105104]
[1750775163833,1.73803464,105450.0,105440.0,0.01105104]
[1750775164057,1.73803464,105450.0,105440.0,0.0083901]
[1750775164058,0.78466224,105450.0,105440.0,0.0083901]
[1750775164263,0.78466224,105450.0,105420.0,0.44045252]
[1750775164264,0.06656893,105430.0,105420.0,0.44045252]
[1750775164430,0.07605371,105430.0,105420.0,0.43096747]
[1750775164596,0.0476,105430.0,105420.0,0.43096747]
[1750775164798,0.36845056,105440.0,105430.0,0.2]
[1750775165006,0.36845587,105420.0,105410.0,0.40870766]
[1750775165226,0.367,105420.0,105410.0,0.64047442]
[1750775165427,0.367,105420.0,105410.0,0.65009869]
[1750775165733,0.34,105420.0,105410.0,0.65009869]
[1750775166372,0.34990579,105420.0,105410.0,0.65009869]
[1750775166699,0.34990579,105420.0,105410.0,0.43681869]
[1750775166821,0.34990579,105420.0,105410.0,0.65889869]
[1750775167966,0.34990579,105420.0,105410.0,0.66589869]
[1750775168894,0.37670579,105420.0,105410.0,0.66593869]
[1750775169108,0.34990579,105420.0,105410.0,0.66593869]
[1750775169751,0.34990579,105420.0,105410.0,0.44381869]
[1750775169966,0.91498706,105420.0,105410.0,0.46593869]
[1750775170181,0.34,105420.0,105410.0,0.66589869]
[1750775170398,0.34,105420.0,105410.0,0.81510055]
[1750775171244,0.34,105420.0,105410.0,0.96510055]
[1750775172094,0.34,105420.0,105410.0,0.74302055]
[1750775172297,0.34,105420.0,105410.0,0.96510055]
[1750775172503,0.34996333,105420.0,105410.0,0.96510055]
[1750775172723,0.34,105420.0,105410.0,0.96510055]
[1750775174786,0.34,105420.0,105410.0,0.74302055]
[1750775174997,0.34,105420.0,105410.0,0.96506055]
[1750775177877,0.34,105420.0,105410.0,0.93826055]
[1750775178084,0.34,105420.0,105410.0,0.91136055]
[1750775178719,0.34,105420.0,105410.0,0.81585869]
[1750775179346,0.34,105420.0,105410.0,0.59381869]
[1750775179552,0.3682,105420.0,105410.0,0.81581869]
[1750775179757,0.34,105420.0,105410.0,0.81581869]
[1750775181866,0.37858523,105420.0,105410.0,0.66581869]
[1750775182080,0.37858514,105420.0,105410.0,0.66581869]
[1750775182290,0.3691,105420.0,105410.0,0.66581869]
[1750775183147,0.34,105420.0,105410.0,0.66581869]
[1750775183560,0.34,105420.0,105410.0,0.44381869]
[1750775183771,0.34,105420.0,105410.0,0.66581869]
[1750775184180,0.34948505,105420.0,105410.0,0.66581869]
[1750775184391,0.90225155,105420.0,105410.0,0.44381869]
[1750775184604,0.89276632,105420.0,105410.0,0.66577869]
[1750775184815,0.37778505,105420.0,105410.0,0.66577869]
[1750775185020,0.3967556,105420.0,105410.0,0.66577869]
[1750775185435,0.38727019,105420.0,105410.0,0.66577869]
[1750775185853,0.3967556,105420.0,105410.0,0.66577869]
[1750775186054,0.38727019,105420.0,105410.0,0.66577869]
[1750775186456,0.3967556,105420.0,105410.0,0.66577869]
[1750775186892,0.40624119,105420.0,105410.0,0.24381869]
[1750775187098,1.13244041,105420.0,105410.0,0.44680634]
[1750775187299,0.92375182,105420.0,105410.0,0.46577869]
[1750775187502,0.40877055,105420.0,105410.0,0.46577869]
[1750775187709,0.40877055,105420.0,105410.0,0.45877869]
[1750775188129,0.41825614,105420.0,105410.0,0.45577869]
[1750775188336,0.41825614,105420.0,105410.0,0.46177869]
[1750775188551,0.42774182,105420.0,105410.0,0.46177869]
[1750775188763,0.43722759,105420.0,105410.0,0.23981869]
[1750775188973,1.13244104,105420.0,105410.0,0.22084652]
[1750775189187,1.13244104,105420.0,105410.0,0.45225283]
[1750775189397,1.27351275,105420.0,105410.0,0.01213814]
[1750775190907,0.75853148,105420.0,105410.0,0.00613814]
[1750775191126,1.27351275,105420.0,105410.0,0.00213814]
[1750775191547,1.27351275,105420.0,105410.0,0.19487345]
[1750775191548,1.07430939,105420.0,105410.0,0.19487345]
[1750775191757,1.03379444,105420.0,105410.0,0.23281923]
[1750775191966,0.34,105420.0,105410.0,0.45173923]
[1750775192399,0.34,105420.0,105410.0,0.45273923]
[1750775192849,0.34,105420.0,105410.0,0.45473923]
[1750775193052,0.34,105420.0,105410.0,0.45173923]
[1750775194128,0.34,105420.0,105410.0,0.44973923]
[1750775194336,0.34,105420.0,105410.0,0.45373923]
[1750775194761,0.34,105420.0,105410.0,0.45773923]
[1750775195189,0.91083732,105420.0,105410.0,0.43876688]
[1750775195394,1.14608135,105420.0,105410.0,0.19787345]
[1750775195634,1.22261275,105420.0,105410.0,0.00813814]
[1750775195847,1.48461324,105420.0,105410.0,0.00813814]
[1750775196065,1.48461341,105420.0,105410.0,0.00813814]
[1750775196480,1.48461341,105420.0,105410.0,0.00413814]
[1750775196909,1.56965308,105420.0,105410.0,0.00413814]
[1750775197120,1.05467181,105420.0,105410.0,0.00413814]
[1750775197333,1.56965308,105420.0,105410.0,0.00413814]
[1750775197537,1.56965308,105420.0,105410.0,0.00013814]
[1750775198200,1.56965308,105420.0,105410.0,0.00213814]
[1750775198408,1.56965308,105420.0,105410.0,0.00313814]
[1750775198617,1.56298532,105420.0,105410.0,0.00313814]
[1750775198821,1.53459419,105420.0,105410.0,0.00013814]
[1750775199023,1.51188937,105420.0,105410.0,0.00013814]
[1750775199253,1.53457334,105420.0,105410.0,0.00013814]
[1750775199461,1.53453334,105420.0,105410.0,0.00213814]
[1750775200298,1.48453334,105420.0,105410.0,0.00213814]
[1750775200534,1.53453334,105420.0,105410.0,0.00213814]
[1750775201402,1.60816891,105420.0,105410.0,0.00213814]
[1750775201638,1.60816891,105420.0,105380.0,0.00838702]
[1750775201639,1.06372944,105390.0,105380.0,0.00838702]
[1750775201865,1.06372944,105390.0,105380.0,0.01787648]
[1750775202073,1.06372944,105390.0,105380.0,0.217155]
[1750775202309,1.08270593,105390.0,105380.0,0.22664392]
[1750775202533,1.10172391,105390.0,105380.0,0.217155]
[1750775202739,1.10172391,105390.0,105380.0,0.221155]
[1750775202949,1.10172391,105390.0,105380.0,0.225155]
[1750775203154,1.09223562,105390.0,105380.0,0.22515518]
[1750775203362,1.08274715,105390.0,105380.0,0.22515518]
[1750775203792,1.07325859,105390.0,105380.0,0.01638702]
[1750775204004,1.2100013,105390.0,105380.0,0.01638702]
[1750775204214,1.2315013,105390.0,105380.0,0.0084]
[1750775204444,0.71652003,105390.0,105380.0,0.0084]
[1750775204653,1.2315013,105390.0,105380.0,0.0084]
[1750775206207,1.2100013,105390.0,105380.0,0.0084]
[1750775206438,1.2100013,105390.0,105380.0,0.19818933]
[1750775206670,1.1833013,105390.0,105380.0,0.20767879]
[1750775207103,1.1833013,105390.0,105380.0,0.0084]
[1750775211604,1.1833013,105390.0,105380.0,0.2076787]
[1750775211605,0.47854871,105390.0,105380.0,0.2076787]
[1750775211811,0.39697078,105390.0,105380.0,0.29304564]
[1750775212049,0.59623066,105390.0,105380.0,0.28355681]
[1750775212436,1.11121193,105390.0,105380.0,0.29304564]
[1750775212988,1.11121193,105390.0,105380.0,0.25505699]
[1750775213196,1.11121193,105390.0,105380.0,0.264546]
[1750775213430,1.11121193,105390.0,105380.0,0.27403492]
[1750775213832,0.39697078,105390.0,105380.0,0.30143438]
[1750775214038,1.10172337,105390.0,105380.0,0.30143438]
[1750775214240,1.10172337,105390.0,105380.0,0.29194555]
[1750775214508,1.10172337,105390.0,105380.0,0.28245663]
[1750775214825,1.10172337,105390.0,105380.0,0.27296798]
[1750775215027,1.09223526,105390.0,105380.0,0.24556807]
[1750775215442,1.09223526,105390.0,105380.0,0.25505726]
[1750775216868,1.09223526,105390.0,105380.0,0.26454636]
[1750775217084,1.09223526,105390.0,105380.0,0.25505726]
[1750775217888,1.08274706,105390.0,105380.0,0.25505726]
[1750775218092,1.08274706,105390.0,105380.0,0.26454627]
[1750775218299,0.88348727,105390.0,105380.0,0.30243519]
[1750775218515,0.37799375,105390.0,105380.0,0.47387456]
[1750775218727,0.368506,105390.0,105380.0,0.47387456]
[1750775218938,0.37799375,105390.0,105380.0,0.47387456]
[1750775219143,0.368506,105390.0,105380.0,0.47387456]
[1750775219349,0.33888,105390.0,105380.0,0.47387456]
[1750775219556,0.34836775,105390.0,105380.0,0.47387456]
[1750775219770,0.35785568,105390.0,105380.0,0.47387456]
[1750775219978,0.35785559,105390.0,105380.0,0.47387456]
[1750775220183,0.3673437,105390.0,105380.0,0.46438564]
[1750775220386,0.37683208,105390.0,105380.0,0.46438564]
[1750775221053,0.37683199,105390.0,105380.0,0.46438564]
[1750775221260,0.57609169,105390.0,105380.0,0.29294564]
[1750775221477,1.07209773,105390.0,105380.0,0.27670933]
[1750775221689,1.07209773,105390.0,105380.0,0.43868807]
[1750775221906,1.06260944,105390.0,105380.0,0.42919879]
[1750775222120,1.06260926,105390.0,105380.0,0.4481769]
[1750775222338,1.06260926,105390.0,105380.0,0.5036769]
[1750775222545,0.35785613,105390.0,105380.0,0.51316573]
[1750775222980,0.36734451,105390.0,105380.0,0.51316573]
[1750775224218,1.08158557,105390.0,105380.0,0.28215708]
[1750775224430,1.06260944,105390.0,105380.0,0.4291587]
[1750775224676,1.19166877,105390.0,105380.0,0.0084]
[1750775225494,1.19166877,105390.0,105380.0,0.20767879]
[1750775226741,1.1821803,105390.0,105380.0,0.0084]
[1750775228509,1.2085803,105390.0,105380.0,0.0084]
[1750775228689,1.4738886,105390.0,105380.0,0.0084]
[1750775229650,1.4738886,105390.0,105380.0,0.0044]
[1750775230175,1.4738886,105390.0,105380.0,0.0004]
[1750775230551,1.4738886,105390.0,105380.0,0.0014]
[1750775232468,1.56935855,105390.0,105380.0,0.0014]
[1750775232671,1.5238486,105390.0,105380.0,0.0014]
[1750775232922,1.56775062,105390.0,105380.0,0.0014]
[1750775233129,1.60553761,105390.0,105380.0,0.0014]
[1750775234708,1.6055373,105390.0,105380.0,0.0014]
[1750775235113,1.60553707,105390.0,105380.0,0.0014]
[1750775235308,1.63308864,105390.0,105380.0,0.0014]
[1750775235486,1.59530165,105390.0,105380.0,0.0014]
[1750775235685,1.59529677,105390.0,105380.0,0.0014]
[1750775235882,1.69076672,105390.0,105380.0,0.0014]
[1750775236339,1.5465052,105390.0,105380.0,0.0014]
[1750775236549,1.53762148,105390.0,105380.0,0.0014]
[1750775236773,1.50926651,105390.0,105380.0,0.0014]
[1750775237230,1.4762086,105390.0,105380.0,0.0014]
[1750775237809,1.3049286,105390.0,105380.0,0.0014]
[1750775238012,1.4762086,105390.0,105380.0,0.0014]
[1750775238185,1.29038775,105390.0,105380.0,0.0014]
[1750775238402,1.46166775,105390.0,105380.0,0.0014]
[1750775238751,1.4762086,105390.0,105380.0,0.0014]
[1750775239381,1.4262086,105390.0,105380.0,0.0014]
[1750775240520,1.42617662,105390.0,105380.0,0.0014]